fUST/lending_fUST_20240704
["ID","MTS","AMOUNT","RATE_DAILY","PERIOD"]
[331113632,1720086652170,-500.0,0.0001523,2]
[331113633,1720086652179,-3921.2,0.00015231,2]
[331113634,1720086652188,-834.12,0.00015231,2]
[331113635,1720086652198,-574.87,0.00015231,2]
[331113636,1720086652208,-835.25,0.00015236,2]
[331113637,1720086652217,-436.171564,0.00015236,2]
[331113638,1720086652226,-436.171564,0.00015236,2]
[331113639,1720086652236,-500.0,0.00015237,2]
[331113640,1720086652246,-500.0,0.00015237,2]
[331113641,1720086652256,-9952.87,0.00015238,2]
[331113642,1720086652266,-5040.88,0.00015242,2]
[331113643,1720086652275,-834.42,0.00015242,2]
[331113644,1720086652284,-579.93,0.00015242,2]
[331113645,1720086652294,-718.66,0.00015242,2]
[331113646,1720086652304,-4899.51,0.00015242,2]
[331113647,1720086652313,-2569.55,0.00015242,2]
[331113648,1720086652322,-151.0,0.00015242,2]
[331113649,1720086652332,-151.0,0.00015242,2]
[331113650,1720086652341,-1607.060044,0.00015242,2]
[331113651,1720086652350,-1607.060044,0.00015242,2]
[331113652,1720086652360,-500.0,0.00015251,2]
[331113653,1720086652370,-8483.37,0.00015251,2]
[331113654,1720086652379,-500.38,0.00015251,2]
[331113655,1720086652388,-700.08,0.00015251,2]
[331113656,1720086652397,-824.97,0.00015251,2]
[331113657,1720086652407,-500.0,0.00015251,2]
[331113658,1720086652416,-888.25,0.00015251,2]
[331113659,1720086652426,-500.0,0.00015251,2]
[331113660,1720086652436,-150.0,0.00015373,2]
[331113661,1720086652446,-902.998,0.00015373,2]
[331113662,1720086652455,-291.754,0.00015373,2]
[331113663,1720086652465,-182.37291187,0.00015386,2]
[331113664,1720086652475,-420.0,0.00015469,2]
[331113665,1720086652484,-500.0,0.00015493,2]
[331113666,1720086652493,-500.0,0.00015493,2]
[331113667,1720086652504,-500.0,0.00015493,2]
[331113668,1720086652514,-500.0,0.00015493,2]
[331113669,1720086652523,-2415.85,0.00015493,2]
[331113670,1720086652532,-253.69913378,0.00015493,2]
[331113671,1720086652542,-767.41,0.00015493,2]
[331113672,1720086652551,-14632.49,0.00015493,2]
[331113673,1720086652560,-835.25,0.00015499,2]
[331113674,1720086652570,-567.08923017,0.000155,2]
[331113675,1720086652579,-964.58,0.00015502,2]
[331113676,1720086652589,-500.0,0.00015502,2]
[331113677,1720086652598,-500.0,0.00015502,2]
[331113678,1720086652607,-1301.84,0.00015502,2]
[331113679,1720086652617,-510.96472728,0.00015502,2]
[331113680,1720086652626,-500.0,0.00015502,2]
[331113681,1720086652636,-829.69,0.00015502,2]
[331113682,1720086652645,-1166.76,0.00015502,2]
[331113683,1720086652655,-500.0,0.00015502,2]
[331113684,1720086652664,-500.0,0.00015502,2]
[331113685,1720086652674,-712.66,0.00015502,2]
[331113686,1720086652683,-656.39,0.00015502,2]
[331113687,1720086652692,-500.0,0.00015502,2]
[331113688,1720086652701,-500.0,0.00015502,2]
[331113689,1720086652711,-2618.93,0.00015502,2]
[331113690,1720086652719,-500.0,0.00015502,2]
[331113691,1720086652728,-500.0,0.00015502,2]
[331113692,1720086652737,-653.06,0.00015502,2]
[331113693,1720086652747,-417.065872,0.00015502,2]
[331113694,1720086652757,-676.7,0.00015502,2]
[331113695,1720086652766,-1109.14,0.00015502,2]
[331113696,1720086652777,-417.065872,0.00015502,2]
[331113697,1720086652786,-1035.57,0.00015502,2]
[331113698,1720086652796,-500.0,0.00015502,2]
[331113699,1720086652805,-500.0,0.00015502,2]
[331113700,1720086652815,-4679.41,0.00015502,2]
[331113701,1720086652824,-500.0,0.00015502,2]
[331113702,1720086652834,-500.0,0.00015502,2]
[331113703,1720086652843,-500.0,0.00015502,2]
[331113704,1720086652853,-500.0,0.00015502,2]
[331113705,1720086652862,-500.0,0.00015502,2]
[331113706,1720086652872,-1849.64,0.00015502,2]
[331113707,1720086652882,-500.0,0.00015502,2]
[331113708,1720086652891,-776.85,0.00015502,2]
[331113709,1720086652901,-500.0,0.00015502,2]
[331113710,1720086652909,-2509.95,0.00015502,2]
[331113711,1720086652918,-1260.96,0.00015502,2]
[331113712,1720086652928,-151.0,0.00015502,2]
[331113713,1720086652940,-219.14428084,0.00015502,2]
[331113714,1720086652950,-1120.86,0.00015502,2]
[331113715,1720086652960,-500.0,0.00015502,2]
[331113716,1720086652969,-500.0,0.00015502,2]
[331113717,1720086652980,-151.0,0.00015502,2]
[331113718,1720086652989,-958.75,0.00015502,2]
[331113719,1720086652998,-533.97,0.00015502,2]
[331113720,1720086653008,-4872.74,0.00015502,2]
[331113721,1720086653017,-601.89,0.00015503,2]
[331113722,1720086653030,-500.0,0.00015503,2]
[331113723,1720086653039,-708.25,0.00015503,2]
[331113724,1720086653048,-500.0,0.00015503,2]
[331113725,1720086653057,-500.0,0.00015503,2]
[331113726,1720086653066,-500.0,0.00015503,2]
[331113727,1720086653075,-152.60349612,0.00015503,2]
[331113728,1720086653085,-500.0,0.00015503,2]
[331113729,1720086653094,-500.0,0.00015503,2]
[331113730,1720086653104,-544.55955665,0.00015503,2]
[331113731,1720086653113,-511.82036638,0.00015503,2]
[331113732,1720086653122,-500.0,0.00015503,2]
[331113733,1720086653132,-500.0,0.00015503,2]
[331113734,1720086653141,-500.0,0.00015503,2]
[331113735,1720086653150,-500.0,0.00015503,2]
[331113736,1720086653158,-500.0,0.00015503,2]
[331113737,1720086653168,-500.0,0.00015503,2]
[331113738,1720086653178,-500.0,0.00015503,2]
[331113739,1720086653187,-500.0,0.00015503,2]
[331113740,1720086653198,-500.0,0.00015503,2]
[331113741,1720086653207,-521.59,0.00015503,2]
[331113742,1720086653216,-500.0,0.00015503,2]
[331113743,1720086653225,-500.0,0.00015503,2]
[331113744,1720086653235,-500.0,0.00015503,2]
[331113745,1720086653244,-500.0,0.00015503,2]
[331113746,1720086653253,-500.0,0.00015503,2]
[331113747,1720086653263,-500.0,0.00015503,2]
[331113748,1720086653272,-208.048076,0.00015503,2]
[331113749,1720086653281,-208.048076,0.00015503,2]
[331113750,1720086653290,-500.0,0.00015503,2]
[331113751,1720086653299,-835.25,0.00015503,2]
[331113752,1720086653308,-513.02323035,0.00015503,2]
[331113753,1720086653317,-153.34073236,0.00015503,2]
[331113754,1720086653325,-500.0,0.00015503,2]
[331113755,1720086653334,-500.0,0.00015503,2]
[331113756,1720086653344,-500.0,0.00015503,2]
[331113757,1720086653353,-500.0,0.00015503,2]
[331113758,1720086653362,-322.47036302,0.00015503,2]
[331113759,1720086653371,-500.0,0.00015503,2]
[331113760,1720086653380,-519.1,0.00015504,2]
[331113761,1720086653390,-500.0,0.00015504,2]
[331113762,1720086653399,-500.0,0.00015504,2]
[331113763,1720086653408,-605.42,0.00015504,2]
[331113764,1720086653418,-608.09,0.00015504,2]
[331113765,1720086653427,-500.0,0.00015504,2]
[331113766,1720086653436,-500.0,0.00015504,2]
[331113767,1720086653445,-500.0,0.00015504,2]
[331113768,1720086653454,-500.0,0.00015504,2]
[331113769,1720086653463,-500.0,0.00015504,2]
[331113770,1720086653473,-436.171564,0.00015504,2]
[331113771,1720086653482,-436.171564,0.00015504,2]
[331113772,1720086653491,-3921.2,0.00015505,2]
[331113773,1720086653500,-834.12,0.00015505,2]
[331113774,1720086653510,-574.87,0.00015505,2]
[331113775,1720086653519,-500.0,0.00015511,2]
[331113776,1720086653528,-500.0,0.00015511,2]
[331113777,1720086653537,-151.0,0.00015511,2]
[331113778,1720086653632,-151.0,0.00015511,2]
[331113779,1720086653643,-1607.060044,0.00015511,2]
[331113780,1720086653652,-1607.060044,0.00015511,2]
[331113781,1720086653661,-9952.87,0.00015512,2]
[331113782,1720086653671,-5040.88,0.00015516,2]
[331113783,1720086653679,-834.42,0.00015516,2]
[331113784,1720086653689,-579.93,0.00015516,2]
[331113785,1720086653698,-718.66,0.00015516,2]
[331113786,1720086653707,-4899.51,0.00015516,2]
[331113787,1720086653717,-2569.55,0.00015516,2]
[331113788,1720086653726,-500.0,0.00015525,2]
[331113789,1720086653735,-8483.37,0.00015525,2]
[331113790,1720086653744,-500.38,0.00015525,2]
[331113791,1720086653754,-700.08,0.00015525,2]
[331113792,1720086653764,-824.97,0.00015525,2]
[331113793,1720086653774,-500.0,0.00015525,2]
[331113794,1720086653783,-835.25,0.00015525,2]
[331113795,1720086653792,-888.25,0.00015525,2]
[331113796,1720086653801,-417.065872,0.00015525,2]
[331113797,1720086653810,-417.065872,0.00015525,2]
[331113798,1720086653819,-500.0,0.00015525,2]
[331113799,1720086653828,-239.543732,0.00015525,2]
[331113800,1720086653837,-151.0,0.00015525,2]
[331113801,1720086653846,-420.0,0.00015534,2]
[331113802,1720086653855,-150.0,0.00015562,2]
[331113803,1720086653864,-835.25,0.00015615,2]
[331113804,1720086653873,-36788.36976143,0.00015616,2]
[331113805,1720086653883,-500.0,0.00015767,2]
[331113806,1720086653892,-500.0,0.00015767,2]
[331113807,1720086653901,-500.0,0.00015767,2]
[331113808,1720086653910,-500.0,0.00015767,2]
[331113809,1720086653919,-2415.85,0.00015767,2]
[331113810,1720086653928,-767.41,0.00015767,2]
[331113811,1720086653942,-14632.49,0.00015767,2]
[331113812,1720086653951,-964.58,0.00015776,2]
[331113813,1720086653960,-500.0,0.00015776,2]
[331113814,1720086653969,-500.0,0.00015776,2]
[331113815,1720086653979,-1301.84,0.00015776,2]
[331113816,1720086653989,-568.54621385,0.00015776,2]
[331113817,1720086653998,-208.048076,0.00015776,2]
[331113818,1720086654008,-829.69,0.00015776,2]
[331113819,1720086654018,-208.048076,0.00015776,2]
[331113820,1720086654029,-1166.76,0.00015776,2]
[331113821,1720086654038,-500.0,0.00015776,2]
[331113822,1720086654047,-500.0,0.00015776,2]
[331113823,1720086654057,-712.66,0.00015776,2]
[331113824,1720086654066,-656.39,0.00015776,2]
[331113825,1720086654076,-500.0,0.00015776,2]
[331113826,1720086654086,-500.0,0.00015776,2]
[331113827,1720086654096,-2618.93,0.00015776,2]
[331113828,1720086654106,-500.0,0.00015776,2]
[331113829,1720086654116,-500.0,0.00015776,2]
[331113830,1720086654126,-653.06,0.00015776,2]
[331113831,1720086654135,-676.7,0.00015776,2]
[331113832,1720086654144,-1109.14,0.00015776,2]
[331113833,1720086654153,-1035.57,0.00015776,2]
[331113834,1720086654162,-500.0,0.00015776,2]
[331113835,1720086654171,-500.0,0.00015776,2]
[331113836,1720086654180,-4679.41,0.00015776,2]
[331113837,1720086654188,-500.0,0.00015776,2]
[331113838,1720086654197,-500.0,0.00015776,2]
[331113839,1720086654207,-500.0,0.00015776,2]
[331113840,1720086654216,-500.0,0.00015776,2]
[331113841,1720086654226,-500.0,0.00015776,2]
[331113842,1720086654235,-1849.64,0.00015776,2]
[331113843,1720086654245,-500.0,0.00015776,2]
[331113844,1720086654254,-776.85,0.00015776,2]
[331113845,1720086654264,-500.0,0.00015776,2]
[331113846,1720086654274,-2509.95,0.00015776,2]
[331113847,1720086654284,-436.171564,0.00015776,2]
[331113848,1720086654294,-1260.96,0.00015776,2]
[331113849,1720086654304,-436.171564,0.00015776,2]
[331113850,1720086654315,-1120.86,0.00015776,2]
[331113851,1720086654325,-151.0,0.00015776,2]
[331113852,1720086654334,-500.0,0.00015776,2]
[331113853,1720086654345,-500.0,0.00015776,2]
[331113854,1720086654355,-958.75,0.00015776,2]
[331113855,1720086654365,-151.0,0.00015776,2]
[331113856,1720086654375,-1607.060044,0.00015776,2]
[331113857,1720086654385,-1607.060044,0.00015776,2]
[331113858,1720086654395,-533.97,0.00015776,2]
[331113859,1720086654404,-4872.74,0.00015776,2]
[331113860,1720086654414,-601.89,0.00015777,2]
[331113861,1720086654423,-500.0,0.00015777,2]
[331113862,1720086654434,-708.25,0.00015777,2]
[331113863,1720086654444,-500.0,0.00015777,2]
[331113864,1720086654454,-618.28408321,0.00015777,2]
[331113865,1720086654465,-500.0,0.00015777,2]
[331113866,1720086654475,-500.0,0.00015777,2]
[331113867,1720086654486,-173.4390236,0.00015777,2]
[331113868,1720086654496,-270.20203007,0.00015777,2]
[331113869,1720086654506,-500.0,0.00015777,2]
[331113870,1720086654515,-500.0,0.00015777,2]
[331113871,1720086654525,-500.0,0.00015777,2]
[331113872,1720086654534,-500.0,0.00015777,2]
[331113873,1720086654544,-500.0,0.00015777,2]
[331113874,1720086654553,-500.0,0.00015777,2]
[331113875,1720086654564,-500.0,0.00015777,2]
[331113876,1720086654573,-521.59,0.00015777,2]
[331113877,1720086654583,-312.63814959,0.00015777,2]
[331113878,1720086654593,-154.45098378,0.00015777,2]
[331113879,1720086654603,-500.0,0.00015777,2]
[331113880,1720086654613,-444.61733256,0.00015777,2]
[331113881,1720086654623,-500.0,0.00015777,2]
[331113882,1720086654632,-500.0,0.00015777,2]
[331113883,1720086654641,-500.0,0.00015777,2]
[331113884,1720086654650,-500.0,0.00015777,2]
[331113885,1720086654660,-500.0,0.00015777,2]
[331113886,1720086654670,-500.0,0.00015777,2]
[331113887,1720086654680,-519.1,0.00015778,2]
[331113888,1720086654697,-500.0,0.00015778,2]
[331113889,1720086654707,-608.35602787,0.00015778,2]
[331113890,1720086654717,-605.42,0.00015778,2]
[331113891,1720086654727,-608.09,0.00015778,2]
[331113892,1720086654736,-500.0,0.00015778,2]
[331113893,1720086654746,-500.0,0.00015778,2]
[331113894,1720086654757,-500.0,0.00015778,2]
[331113895,1720086654768,-500.0,0.00015778,2]
[331113896,1720086654779,-500.0,0.00015778,2]
[331113897,1720086654789,-835.25,0.00015778,2]
[331113898,1720086654803,-417.065872,0.00015778,2]
[331113899,1720086654814,-417.065872,0.00015778,2]
[331113900,1720086654823,-151.0,0.00015778,2]
[331113901,1720086654833,-3921.2,0.00015779,2]
[331113902,1720086654842,-834.12,0.00015779,2]
[331113903,1720086654851,-574.87,0.00015779,2]
[331113904,1720086654860,-500.0,0.00015785,2]
[331113905,1720086654870,-500.0,0.00015785,2]
[331113906,1720086654879,-9952.87,0.00015786,2]
[331113907,1720086654889,-5040.88,0.0001579,2]
[331113908,1720086654898,-834.42,0.0001579,2]
[331113909,1720086654907,-579.93,0.0001579,2]
[331113910,1720086654918,-718.66,0.0001579,2]
[331113911,1720086654927,-4899.51,0.0001579,2]
[331113912,1720086654938,-2569.55,0.0001579,2]
[331113913,1720086654950,-500.0,0.00015799,2]
[331113914,1720086654960,-8483.37,0.00015799,2]
[331113915,1720086654969,-500.38,0.00015799,2]
[331113916,1720086654981,-700.08,0.00015799,2]
[331113917,1720086654991,-824.97,0.00015799,2]
[331113918,1720086655001,-500.0,0.00015799,2]
[331113919,1720086655012,-835.25,0.00015799,2]
[331113920,1720086655021,-835.25,0.00015799,2]
[331113921,1720086655033,-835.25,0.00015799,2]
[331113922,1720086655043,-835.25,0.00015799,2]
[331113923,1720086655053,-835.4044566,0.00015799,2]
[331113924,1720086655061,-888.25,0.00015799,2]
[331113925,1720086655071,-153.0,0.00015799,2]
[331113926,1720086655080,-150.0,0.00015815,2]
[331113927,1720086655090,-150.0,0.00015815,2]
[331113928,1720086655099,-153.0,0.00015909,2]
[331113929,1720086655108,-620.0772508,0.0001592,2]
[331113930,1720086655117,-1696.17531866,0.00015995,2]
[331113931,1720086655127,-500.0,0.00016041,2]
[331113932,1720086655136,-500.0,0.00016041,2]
[331113933,1720086655145,-500.0,0.00016041,2]
[331113934,1720086655154,-500.0,0.00016041,2]
[331113935,1720086655163,-2415.85,0.00016041,2]
[331113936,1720086655173,-767.41,0.00016041,2]
[331113937,1720086655181,-14632.49,0.00016041,2]
[331113938,1720086655190,-964.58,0.0001605,2]
[331113939,1720086655199,-500.0,0.0001605,2]
[331113940,1720086655209,-500.0,0.0001605,2]
[331113941,1720086655218,-1301.84,0.0001605,2]
[331113942,1720086655227,-208.048076,0.0001605,2]
[331113943,1720086655236,-829.69,0.0001605,2]
[331113944,1720086655246,-208.048076,0.0001605,2]
[331113945,1720086655257,-1166.76,0.0001605,2]
[331113946,1720086655267,-500.0,0.0001605,2]
[331113947,1720086655277,-500.0,0.0001605,2]
[331113948,1720086655286,-712.66,0.0001605,2]
[331113949,1720086655298,-656.39,0.0001605,2]
[331113950,1720086655308,-500.0,0.0001605,2]
[331113951,1720086655317,-500.0,0.0001605,2]
[331113952,1720086655326,-2618.93,0.0001605,2]
[331113953,1720086655335,-500.0,0.0001605,2]
[331113954,1720086655344,-500.0,0.0001605,2]
[331113955,1720086655353,-653.06,0.0001605,2]
[331113956,1720086655363,-676.7,0.0001605,2]
[331113957,1720086655372,-1109.14,0.0001605,2]
[331113958,1720086655382,-1035.57,0.0001605,2]
[331113959,1720086655392,-500.0,0.0001605,2]
[331113960,1720086655401,-500.0,0.0001605,2]
[331113961,1720086655411,-4679.41,0.0001605,2]
[331113962,1720086655420,-500.0,0.0001605,2]
[331113963,1720086655429,-500.0,0.0001605,2]
[331113964,1720086655438,-500.0,0.0001605,2]
[331113965,1720086655447,-500.0,0.0001605,2]
[331113966,1720086655543,-500.0,0.0001605,2]
[331113967,1720086655553,-1849.64,0.0001605,2]
[331113968,1720086655563,-500.0,0.0001605,2]
[331113969,1720086655572,-776.85,0.0001605,2]
[331113970,1720086655581,-500.0,0.0001605,2]
[331113971,1720086655590,-2509.95,0.0001605,2]
[331113972,1720086655600,-436.171564,0.0001605,2]
[331113973,1720086655609,-1260.96,0.0001605,2]
[331113974,1720086655618,-436.171564,0.0001605,2]
[331113975,1720086655627,-1120.86,0.0001605,2]
[331113976,1720086655636,-151.0,0.0001605,2]
[331113977,1720086655645,-500.0,0.0001605,2]
[331113978,1720086655653,-500.0,0.0001605,2]
[331113979,1720086655663,-958.75,0.0001605,2]
[331113980,1720086655672,-286.821368,0.0001605,2]
[331113981,1720086655682,-1607.060044,0.0001605,2]
[331113982,1720086655691,-1607.060044,0.0001605,2]
[331113983,1720086655700,-533.97,0.0001605,2]
[331113984,1720086655709,-4872.74,0.0001605,2]
[331113985,1720086655718,-601.89,0.00016051,2]
[331113986,1720086655727,-500.0,0.00016051,2]
[331113987,1720086655736,-708.25,0.00016051,2]
[331113988,1720086655745,-500.0,0.00016051,2]
[331113989,1720086655753,-500.0,0.00016051,2]
[331113990,1720086655765,-500.0,0.00016051,2]
[331113991,1720086655774,-500.0,0.00016051,2]
[331113992,1720086655783,-500.0,0.00016051,2]
[331113993,1720086655792,-499.23946303,0.00016051,2]
[331113994,1720086655801,-500.0,0.00016051,2]
[331113995,1720086655810,-500.0,0.00016051,2]
[331113996,1720086655820,-500.0,0.00016051,2]
[331113997,1720086655829,-500.0,0.00016051,2]
[331113998,1720086655839,-521.59,0.00016051,2]
[331113999,1720086655848,-500.0,0.00016051,2]
[331114000,1720086655858,-500.0,0.00016051,2]
[331114001,1720086655867,-500.0,0.00016051,2]
[331114002,1720086655877,-500.0,0.00016051,2]
[331114003,1720086655886,-500.0,0.00016051,2]
[331114004,1720086655896,-500.0,0.00016051,2]
[331114005,1720086655905,-500.0,0.00016051,2]
[331114006,1720086655914,-519.1,0.00016052,2]
[331114007,1720086655924,-515.74477694,0.00016052,2]
[331114008,1720086655933,-605.42,0.00016052,2]
[331114009,1720086655944,-608.09,0.00016052,2]
[331114010,1720086655957,-500.0,0.00016052,2]
[331114011,1720086655966,-500.0,0.00016052,2]
[331114012,1720086655976,-500.0,0.00016052,2]
[331114013,1720086655987,-500.0,0.00016052,2]
[331114014,1720086655996,-500.0,0.00016052,2]
[331114015,1720086656007,-417.065872,0.00016052,2]
[331114016,1720086656016,-417.065872,0.00016052,2]
[331114017,1720086656026,-151.0,0.00016052,2]
[331114018,1720086656035,-3921.2,0.00016053,2]
[331114019,1720086656045,-834.12,0.00016053,2]
[331114020,1720086656055,-574.87,0.00016053,2]
[331114021,1720086656064,-349.38026336,0.00016059,2]
[331114022,1720086656074,-500.0,0.00016059,2]
[331114023,1720086656083,-9952.87,0.0001606,2]
[331114024,1720086656093,-5040.88,0.00016064,2]
[331114025,1720086656102,-834.42,0.00016064,2]
[331114026,1720086656111,-579.93,0.00016064,2]
[331114027,1720086656121,-718.66,0.00016064,2]
[331114028,1720086656130,-4899.51,0.00016064,2]
[331114029,1720086656139,-2569.55,0.00016064,2]
[331114030,1720086656149,-500.0,0.00016073,2]
[331114031,1720086656158,-8483.37,0.00016073,2]
[331114032,1720086656167,-500.38,0.00016073,2]
[331114033,1720086656176,-700.08,0.00016073,2]
[331114034,1720086656185,-824.97,0.00016073,2]
[331114035,1720086656194,-500.0,0.00016073,2]
[331114036,1720086656204,-888.25,0.00016073,2]
[331114037,1720086656213,-150.0,0.00016105,2]
[331114038,1720086656222,-352.0048889,0.0001611,2]
[331114039,1720086656231,-150.0,0.0001615,2]
[331114040,1720086656240,-150.3587272,0.00016196,2]
[331114041,1720086656249,-86506.47755785,0.00016254,2]
[331114042,1720086656272,-13493.52244215,0.00016254,2]
[331114043,1720086656280,-60680.80619976,0.00016254,2]
[331114044,1720086656348,6953.9743204,0.00013699,2]
[331114045,1720086656585,268.08468,0.0001212,2]
[331114046,1720086656715,519.7925028,0.00013707,2]
[331114047,1720086657869,19378.48287081,0.0001212,2]
[331114048,1720086661856,155.12062954,0.0001212,2]
[331114049,1720086664441,250.60718138,0.0001212,2]
[331114050,1720086667556,668.15518255,0.0001212,2]
[331114051,1720086671426,761.40537033,0.0001212,2]
[331114052,1720086674436,154.86836189,0.0001212,2]
[331114053,1720086676698,597.45420845,0.0001212,2]
[331114054,1720086676826,215.02818583,0.0001212,2]
[331114055,1720086681321,789.77698638,0.00014,2]
[331114056,1720086684148,3078.51196359,0.0001212,2]
[331114057,1720086688723,2126.25063044,0.0001212,2]
[331114058,1720086692047,151.0,0.00013983,2]
[331114059,1720086692183,151.0,0.00013899,2]
[331114060,1720086692330,151.0,0.00013815,2]
[331114061,1720086692480,151.0,0.00013731,2]
[331114062,1720086692642,151.0,0.00013647,2]
[331114063,1720086692801,151.0,0.00013563,2]
[331114064,1720086692935,151.0,0.00013479,2]
[331114065,1720086730562,371.49309753,0.00013899,2]
[331114066,1720086797347,156.2,0.000225,60]
[331114067,1720086799222,190.88240731,0.00013922,2]
[331114068,1720086817423,281.95368,0.00013699,2]
[331114069,1720086847378,9351.18437695,0.00013899,2]
[331114070,1720086864549,10905.91962765,0.00013899,2]
[331114071,1720086881239,4384.00794706,0.00013899,2]
[331114072,1720086921630,3352.76995128,0.00025,120]
[331114073,1720086932256,667.77831059,9.999e-05,2]
[331114074,1720086942933,155.04454403,9.999e-05,2]
[331114075,1720087008424,2022.78976667,0.00013919,2]
[331114076,1720087061219,678.36941013,0.00013965,2]
[331114077,1720087190237,500.0,0.00025,120]
[331114078,1720087194255,13800.0239616,0.00013156,2]
[331114079,1720087203025,500.0,0.00025,120]
[331114080,1720087210704,500.0,0.00025,120]
[331114081,1720087222752,500.0,0.00025,120]
[331114082,1720087244362,360.0994,0.00025,120]
[331114088,1720087278057,1071.16044479,9.999e-05,2]
[331114106,1720087312821,24900.0,0.00013037,2]
[331114107,1720087317571,428.85271792,0.0001212,2]
[331114110,1720087342080,593.57323389,0.00013922,2]
[331114113,1720087480381,281.9536815,0.00013699,2]
[331114116,1720087591739,400.0,0.00025,120]
[331114117,1720087622833,519.37657961,0.0001392,2]
[331114120,1720087735937,-300.0,0.00014011,2]
[331114121,1720087735966,-500.0,0.00014011,2]
[331114122,1720087735996,-49.37963275,0.00014011,2]
[331114123,1720087736030,-450.62036725,0.00014011,2]
[331114124,1720087736060,-398.7592655,0.00014011,2]
[331114125,1720087736094,-57.12095389,0.00014011,2]
[331114126,1720087736124,-202.76218372,0.00014011,2]
[331114127,1720087766289,5752.50950177,0.0001391,2]
[331114161,1720087832865,-1600.31656669,0.00013014,2]
[331114163,1720087832877,-636.53625817,0.00013014,2]
[331114165,1720087832888,-6415.78195967,0.00013014,2]
[331114168,1720087832899,-1352.70207437,0.00013014,2]
[331114170,1720087832912,-635.79487883,0.00013014,2]
[331114258,1720087839278,-14258.86826227,0.00013014,2]
[331114259,1720087839289,-500.0,0.00013698,2]
[331114261,1720087839304,-353.29999262,0.00013698,2]
[331114262,1720087839314,-500.0,0.00013698,2]
[331114263,1720087839324,-500.0,0.00013698,2]
[331114264,1720087839336,-500.0,0.00013698,2]
[331114265,1720087839347,-400.44518285,0.00013698,2]
[331114266,1720087839356,-595.58802194,0.00013698,2]
[331114267,1720087839367,-500.0,0.00013698,2]
[331114268,1720087839377,-500.0,0.00013698,2]
[331114269,1720087839387,-500.0,0.00013698,2]
[331114270,1720087839399,-164.54551331,0.00013698,2]
[331114271,1720087839410,-500.0,0.00013698,2]
[331114272,1720087839420,-500.0,0.00013698,2]
[331114273,1720087839430,-500.0,0.00013698,2]
[331114274,1720087839440,-500.0,0.00013698,2]
[331114275,1720087839449,-500.0,0.00013698,2]
[331114276,1720087839459,-500.0,0.00013698,2]
[331114277,1720087839468,-500.0,0.00013698,2]
[331114278,1720087839479,-500.0,0.00013698,2]
[331114279,1720087839489,-500.0,0.00013698,2]
[331114280,1720087839498,-500.0,0.00013698,2]
[331114281,1720087839508,-615.8587412,0.00013698,2]
[331114282,1720087839517,-500.0,0.00013698,2]
[331114283,1720087839527,-500.0,0.00013698,2]
[331114284,1720087839536,-500.0,0.00013698,2]
[331114285,1720087839545,-500.0,0.00013698,2]
[331114287,1720087839554,-500.0,0.00013698,2]
[331114288,1720087839564,-500.0,0.00013698,2]